Cogmind - Beta 13 @@@ ROGUE MODE // 2024.07.07 @ 23:18:10 Player: APerTAS Result: Destroyed by Y-45 Defender with Heavy Assault Rifle Performance ------------- Evolutions (1) 500 Regions Visited (2) 400 Robots Destroyed (2) 10 Value Destroyed (55) 55 Prototype IDs (1) 20 Alien Tech Used (0) 0 Bonus (0) 0 TOTAL SCORE: 985 Bonus ------- None Cogmind --------- Core Integrity 0/400 Matter 180/300 Energy 100/100 System Corruption 0% Temperature Cool (15) Movement Core (200) Ox3 Location -9/Materials Parts ------- > --- POWER (1) -------- (None) > --- PROPULSION (2) --- (None) > --- UTILITY (4) ------ Medium Storage Unit > --- WEAPON (2) ------- (None) > --- INVENTORY (10) --- Small Matter Pod (0) Weight Redist. System Medium Laser Assault Rifle Welding Torch Peak State ------------ > --- POWER ------------ Light Ion Engine > --- PROPULSION ------- Hover Unit Combat Airjet > --- UTILITY ---------- Medium Storage Unit Weight Redist. System Sensor Array Seismic Detector > --- WEAPON ----------- Assault Rifle Light Assault Rifle > --- INVENTORY -------- Ion Engine Small Matter Pod Medium Laser Welding Torch [Rating: 14] Favorites ----------- Power Ion Engine Engine Ion Engine Propulsion Light Treads Treads Light Treads Hover Unit Combat Airjet Flight Unit Improved Flight Unit Utility Small Storage Unit Device Seismic Detector Storage Small Storage Unit Weapon Assault Rifle Energy Gun EM Pulse Gun Ballistic Gun Assault Rifle Build | -11 -10 -9 ------- Run | Yrd Mat Mat Slots Evolved 2 | . . 2 Power . | . . . Propulsion . | . . . Utility 2 | . . 2 Weapon . | . . . Parts Attached 25 | 7 11 7 Power 3 | 1 1 1 Engine 3 | 1 1 1 Core . | . . . Reactor . | . . . Propulsion 6 | 2 2 2 Treads 2 | 2 . . Leg . | . . . Wheel . | . . . Hover 3 | . 2 1 Flight 1 | . . 1 Utility 11 | 1 6 4 Device 6 | . 2 4 Storage 5 | 1 4 . Processor . | . . . Hackware . | . . . Protection . | . . . Artifact . | . . . Weapon 5 | 3 2 . Energy Gun 2 | 2 . . Energy Cannon . | . . . Ballistic Gun 3 | 1 2 . Ballistic Cannon . | . . . Launcher . | . . . Special Weapon . | . . . Impact Weapon . | . . . Slashing Weapon . | . . . Piercing Weapon . | . . . Special Melee Weapon . | . . . Unidentified Prototypes 1 | . . 1 Parts Lost 7 | 1 . 6 Power 1 | . . 1 Propulsion 2 | . . 2 Utility 2 | . . 2 Weapon 2 | 1 . 1 Highest Loss Streak 6 | 1 . 6 To Critical Strikes . | . . . Average Slot Usage (%) 78 | . 82 73 Engine 12 | . 14 9 Hover 21 | . 25 16 Device 11 | . 3 22 Storage 11 | . 11 11 Energy Gun 1 | . 3 . Ballistic Gun 19 | . 24 13 Naked Turns . | . . . Heaviest Build 20 | 14 16 20 Greatest Support 40 | 40 24 24 Greatest Overweight (x) . | . . . Average Overweight (x) . | . . . Largest Inventory Capacity 20 | 8 20 10 Average Capacity 8 | 7 7 10 Most Carried 8 | 3 8 7 Average Carried 2 | 1 5 4 Final Capacity 10 | 8 10 10 Final Carried 6 | 2 6 5 Class Distribution -------------------- 100% | Mutant Dominant Class ---------------- Mutant | -10/Materials Mutant | -9/Materials Resources | -11 -10 -9 ----------- Run | Yrd Mat Mat Matter Collected 355 | 271 84 . Remotely . | . . . Salvage Created 54 | . 54 . Parts 2 | . 2 . Haulers Intercepted 1 | . 1 . Recyclers Shooed . | . . . Parts Field Recycled . | . . . Retrieved Matter . | . . . Parts Self-Destructed . | . . . Prevented . | . . . Kills | -11 -10 -9 ------- Run | Yrd Mat Mat Combat Hostiles Destroyed 1 | 1 . . Guns 1 | 1 . . Classes Destroyed 2 | 1 1 . Hauler 1 | . 1 . Demolisher 1 | 1 . . Best Kill Streak 1 | 1 1 . Combat Bots Only 1 | 1 . . Max Kills in Single Turn 1 | 1 1 . Gunslinging . | . . . Exploded . | . . . Melee . | . . . Uniques/NPCs Destroyed . | . . . Combat | -11 -10 -9 -------- Run | Yrd Mat Mat Hostile Shots Fired 72 | 3 . 69 Missed 19 | 1 . 18 Damage Taken 872 | 140 . 732 Core 424 | 13 . 411 Absorbed by Shields . | . . . Core Remaining (%) 94 | 94 94 . Volleys Fired 24 | 3 6 15 Largest 2 | 2 2 2 Hottest 60 | 60 40 40 Shots Fired 36 | 4 12 20 Gun 36 | 4 12 20 Cannon . | . . . Launcher . | . . . Special . | . . . Kinetic 35 | 3 12 20 Thermal . | . . . Explosive . | . . . Electromagnetic 1 | 1 . . Robot Hit Streak 2 | 1 2 2 Robot Miss Streak 6 | 1 5 6 Penetration Max . | . . . Secondary Targets . | . . . Shots Hit Robots 11 | 2 3 6 Core Hits 3 | 1 1 1 Critical Kills . | . . . Critical Parts Destroyed . | . . . Critical Strikes . | . . . Melee Attacks . | . . . Impact . | . . . Slashing . | . . . Piercing . | . . . Sneak Attacks . | . . . Combat Hostiles . | . . . Follow-up Attacks . | . . . Damage Inflicted 126 | 29 35 62 Guns 121 | 24 35 62 Cannons . | . . . Explosions . | . . . Melee . | . . . Ramming 5 | 5 . . Kinetic 121 | 24 35 62 Thermal . | . . . Explosive . | . . . Electromagnetic . | . . . Impact . | . . . Slashing . | . . . Piercing . | . . . Highest Corruption . | . . . Average Corruption . | . . . Corruption Purged . | . . . Corruption Blocked . | . . . Overload Shots . | . . . Overflow Damage . | . . . Projectiles . | . . . Explosions . | . . . Melee . | . . . Knockbacks . | . . . Impact . | . . . Kinetic . | . . . Secondary . | . . . Self-Inflicted Damage . | . . . Shots . | . . . Rammed 2 | 2 . . Targets Rammed 2 | 2 . . Kicked . | . . . Crushed . | . . . Highest Temperature 7 | . 5 7 Average Temperature 2 | . 2 4 Received Heat Transfer 240 | . . 240 Siege Activations . | . . . Robots Corrupted . | . . . Combat Hostiles . | . . . Parts Fried . | . . . Impact Corruptions . | . . . Robots Melted . | . . . Combat Hostiles . | . . . Parts Melted . | . . . Heat Transferred . | . . . Parts Sabotaged . | . . . Parts Stolen . | . . . Parts Stripped . | . . . Power Chain Reactions . | . . . Alert | -11 -10 -9 ------- Run | Yrd Mat Mat Peak Influence 83 | 30 22 83 Initial 9 | . . 9 Average 3 | 1 8 53 Maximum Alert Level . | . . . Low Security (%) 100 | 100 100 100 Level 1 . | . . . Level 2 . | . . . Level 3 . | . . . Level 4 . | . . . Level 5 . | . . . High Security . | . . . Max Security . | . . . Squads Dispatched 2 | . . 2 Investigation . | . . . Extermination . | . . . Reinforcement 2 | . . 2 Assault . | . . . Garrison . | . . . Intercept . | . . . Searches Triggered . | . . . Construction Impeded . | . . . Haulers Reinforced . | . . . Active Scanning Responses . | . . . Cargo Convoy Interrupts . | . . . Stealth | -11 -10 -9 --------- Run | Yrd Mat Mat Distress Signals 1 | . . 1 Communications Jammed . | . . . Distress Signals . | . . . Times Spotted 11 | 1 5 5 Peak Tracking Total 3 | 1 3 3 Tactical Retreats . | . . . Traps | -11 -10 -9 ------- Run | Yrd Mat Mat Traps Triggered . | . . . Indirectly . | . . . Trap Hack Attempts . | . . . Triggered . | . . . Disarmed . | . . . Reprogrammed . | . . . Reused . | . . . Traps Extracted . | . . . Installed . | . . . Triggered . | . . . Machines | -11 -10 -9 ---------- Run | Yrd Mat Mat Machines Disabled . | . . . Max in Single Turn . | . . . Machines Repaired . | . . . Machines Dismantled . | . . . Machines Sabotaged . | . . . Overloaded Fab Kills . | . . . Hacking | -11 -10 -9 --------- Run | Yrd Mat Mat Machines Accessed 3 | . 1 2 Terminals 3 | . 1 2 Fabricators . | . . . Repair Stations . | . . . Recycling Units . | . . . Scanalyzers . | . . . Garrison Access . | . . . Total Hacks 7 | . 3 4 Successful 3 | . . 3 Failed 4 | . 3 1 Catastrophic . | . . . Database Lockouts . | . . . Manual . | . . . Terminals 7 | . 3 4 Fabricators . | . . . Repair Stations . | . . . Recycling Units . | . . . Scanalyzers . | . . . Garrison Access . | . . . Terminal Hacks 3 | . . 3 Robot Analysis 1 | . . 1 Terminal Index 1 | . . 1 Zone Layout 1 | . . 1 Fabricator Hacks . | . . . Repair Station Hacks . | . . . Recycling Unit Hacks . | . . . Scanalyzer . | . . . Garrison Access Hacks . | . . . Unauthorized Hacks . | . . . Terminals . | . . . Fabricators . | . . . Repair Stations . | . . . Recycling Units . | . . . Scanalyzers . | . . . Garrison Access . | . . . Data Cores Recovered . | . . . Used . | . . . Hacking Detections 3 | . 1 2 Full Trace Events . | . . . Feedback Events . | . . . Feedback Blocked . | . . . Robot Schematics Acquired . | . . . Robots Built . | . . . Authchips . | . . . Time . | . . . Total Robot Build Rating . | . . . Part Schematics Acquired . | . . . Parts Built . | . . . Authchips . | . . . Time . | . . . Total Part Build Rating . | . . . Parts Repaired . | . . . Time . | . . . Parts Recycled . | . . . Recycled Matter . | . . . Retrieved Matter . | . . . Retrieved Components . | . . . Parts Scanalyzed . | . . . Part Schematics Acquired . | . . . Parts Damaged . | . . . Bothacking | -11 -10 -9 ------------ Run | Yrd Mat Mat Used RIF Installer . | . . . Robots Hacked . | . . . Non-combat . | . . . Combat . | . . . Robot Hacks Applied . | . . . Relay Couplers Released . | . . . Fabnet Peak Effective % . | . . . Robots Rewired . | . . . Allies Hacked . | . . . Hacks Repelled . | . . . Allies | -11 -10 -9 -------- Run | Yrd Mat Mat Total Allies . | . . . Largest Group . | . . . Highest-Rated Group . | . . . Highest-Rated Ally . | . . . Total Orders . | . . . Ally Attacks . | . . . Total Damage . | . . . Kills . | . . . Allies Corrupted . | . . . Allies Melted . | . . . Intel | -11 -10 -9 ------- Run | Yrd Mat Mat Robot Analysis Total 1 | . . 1 Derelict Logs Recovered . | . . . Drone Launches . | . . . Drone Recoveries . | . . . Exploration | -11 -10 -9 ------------- Run | Yrd Mat Mat Turns Passed 4198 | 3759 246 193 Spaces Moved 1491 | 1064 294 133 Core 10 | 10 . . Treads 1054 | 1054 . . Legs . | . . . Wheels . | . . . Hover 427 | . 294 133 Flight . | . . . Fastest Speed 50 | 50 66 66 Average Speed 132 | 158 68 66 Slowest Speed 160 | 160 80 66 Overloaded Moves . | . . . Propulsion Burnouts . | . . . Robots Hopped . | . . . Cave-ins Triggered . | . . . Exploration Rate (%) 52 | 108 40 8 Regions Visited 2 Branch Regions . Pre-discovered Areas . | . . . Known Exits Taken . | . . . Unknown Exits Taken 2 | 1 1 . Scrap Searched . | . . . Spaces Dug . | . . . Terrain Destroyed . | . . . Melee . | . . . Projectile . | . . . AOE . | . . . Terrain Rammed . | . . . Walls Destroyed . | . . . Machines Disabled . | . . . Actions | -11 -10 -9 --------- Run | Yrd Mat Mat Total 3678 | 3127 327 224 Wait 2105 | 2043 . 62 Move 1489 | 1063 293 133 Hop . | . . . Pick Up 19 | 9 9 1 Fast Attach . | . . . Attach 18 | 7 5 6 Detach 8 | . 4 4 Swap 7 | . 6 1 Drop 6 | . 4 2 Fire 24 | 3 6 15 Melee . | . . . Ram . | . . . Kick . | . . . Crush 2 | 2 . . Escape Stasis . | . . . Rewire . | . . . Trap . | . . . Miscellaneous . | . . . Route ------- -11/Scrapyard -10/Materials -9/Materials History --------- Turn | Location | Event 56 | -11/Scrapyard | Discovered new exit (range 14) 3044 | -11/Scrapyard | Assembled infested the area 3760 | -11/Scrapyard | Entered Materials 3783 | -10/Materials | Build established: Mutant 3976 | -10/Materials | Discovered new exit (range 15) 4006 | -10/Materials | Entered another Materials area 4006 | -9/Materials | Evolved 2 slots: Utility x2 4182 | -9/Materials | Core integrity fell below 50% 4194 | -9/Materials | Core integrity fell below 20% 4199 | -9/Materials | Destroyed by Y-45 Defender with Heavy Assault Rifle Last Messages --------------- reinforcements to Terminal M007. ALERT: Hostiles spotted, dispatching reinforcements to Terminal M003. Acquired Prototype Flight Unit. Identified Imp. Flight Unit. Lgt. Ion Engine broken. Faulty integration triggers power surge. Dropped Faulty Imp. Flight Unit. Dropped Broken Lgt. Ion Engine. Cmb. Airjet destroyed. Hover Unit destroyed. M-13 Machinist repairs Y-45 Defender. Sensor Array destroyed. W-16 Scout sends out distress signal. Lgt. Assault Rifle destroyed. Ion Engine destroyed. W-16 Scout destroyed. R-06 Scavenger collects Hover Unit. R-06 Scavenger collects Signal Interpreter. Seismic Detector destroyed. Map ----- +----------------------------------------------------+ | | | | | | | | | | | | | | | | | | | | | | | | | | | | | ?????????????????????????????##################### | | ?????????????????????????????# """ """ """ ## | | ?????????????????????????????# """ """ """ ## "T" | | ?????????????????????????????# """ """ """ ## """ | | ?????????????????????????????# ## | | ?????????????????????????????# = #####+# | | ?????????????????????????????# * #?# | | ????????????????????????#######+####+######### | | ????????????????????????# | | ????????????????????????#=%g ######### | | ????????????????????????# !######## ##???????# | | ????????????????????????#@ #??????# #????????### # | | ????????????????????????# #??????# ???????????# # | | ???????????????????????? Y #?????#+?????####### # | | ??????????????????????? #???????????? T # | | ?????????????????????? +???????????? # ## | | ?????????????????????### # ???????????"" # #? | | ???????????????????????###### ??????????"" + #? | | ??????????????????????????????""?????????"" # #? | | ??????????????????????????????"""???????? # #? | | ???????????????????????????????""???????? # #? | | ????????????????????????????????????????? # ## | | ?????????????????????????????????????????#### # | | ?????????????????????????????????????????"" # # | | ?????????????????????????????????????????"S + # | | ????????????????????????????????????????????# #? | | ????????????????????????????????????????????# #? | | ????????????????????????????????????????????# #? | | ????????????????????????????????????????????# ?? | | ????????????????????????????????????????????? ?? | | ????????????????????????????????????????????? ?? | | ?????????????????????????????????????????????????? | | ?????????????????????????????????????????????????? | | ?????????????????????????????????????????????????? | | ?????????????????????????????????????????????????? | | ?????????????????????????????????????????????????? | +----------------------------------------------------+ Best States ------------- Heat Dissipation 28 Energy Generation 10 Energy Capacity 250 Matter Stores 300 Matter Capacity 300 Sight Range 16 Robot Scan Range 14 Terrain Scan Density 10 Additional Mass Support 6 Evasion (%) 51 Recoil Reduction 2 Item Schematics ----------------- None Robot Schematics ------------------ None Fabricated ------------ Nothing Alien Tech Used ----------------- None Achievements -------------- None Challenges ------------ None Game ------ Seed ScanSchematicPlatform Manual? 0 Play Time 00:15:23 Cumulative 5.4 hours Start 2024.07.07 @ 23:03:41 End 2024.07.07 @ 23:18:10 Sessions 1 Manual Loads 0 Difficulty Rogue Special Mode None Game No. 11 Rogue 11 Adventurer 0 Explorer 0 Win Type - Total 0 Types 0/0/0/0/0/0/0/0/0 Lore% 10 Gallery% 7 Achievement% 8 Wizard Run 0 Options --------- Layout 1 ASCII 0 Keyboard 0 Movement Arrows Keybinds 0 Fullscreen 1 Font 28/Dina Map View 50x43 Zoom Use 0% Tactical HUD 0 Map Filters NONE Filters NONE Steam 1 RUN: 530960cb-bd1d-4297-8078-5a61088d9ff8